{"text_format":"1","workbook":"xlsx","n_sheets":6,"sheets":["identificacion","Instrucciones","lista botiquin C","Sit","Ghost","Consulta situacion del botiquin"],"not_rendered":{"charts":0,"images":6,"macros":1,"external_links":0,"defined_names":6,"comments":0,"pivot_tables":0},"unopened":[],"bounds":{"document_bytes":16777216,"sheet_cells":100000,"rows_first":2000,"rows_last":500,"rows_between":2000,"halvings":0,"cell_chars":16384,"cell_head_chars":4096},"cells_cut":0,"cells_raw":0,"read":"whole","date_system":"1900"}

{"sheet":"identificacion","index":0,"n_rows":36,"n_cols":11,"rows_kept":36,"cut":false,"hidden":false,"merged":[[0,1,0,10],[6,7,6,10],[6,1,6,6],[7,1,7,6],[1,1,1,10],[2,3,2,10],[3,3,3,5],[3,7,3,10],[4,1,4,4],[4,5,4,10],[5,3,5,10],[2,1,2,2],[7,7,7,10],[3,1,3,2],[5,1,5,2],[13,2,13,9],[23,8,23,9],[23,2,23,3],[9,3,9,4],[9,5,9,6]]}
[null,"CONTROL DEL CONTENIDO DEL BOTIQUÍN TIPO C HASTA 10 MN"]
[null,"DATOS IDENTIFICATIVOS DEL BUQUE"]
[null,"Nombre del Buque",null,""]
[null,"Matrícula",null,"",null,null,"N.I.B.",""]
[null,"Nombre del propietario o empresa armadora",null,null,null,""]
[null,"Puerto base",null,""]
[null,"Nombre y apellidos del Responsable Sanitario a Bordo (RSB)",null,null,null,null,null,""]
[null,"D.N.I./N.I.E./Pasaporte del Responsable Sanitario a Bordo (RSB)",null,null,null,null,null,""]
[]
[null,null,null,"fecha del control:"]
[]
[]
[]
[null,null,"Observaciones del responsable de la revisión (ISM)"]
[]
[]
[]
[]
[]
[]
[]
[]
[]
[null,null,"Firma del responsable sanitario a bordo (RSB)",null,null,null,null,null,"Firma y Sello del responsable de la revisión"]
[]
[]
[]
[]
[]
[]
[]
[]
[]
[]
[]
[null,null,null,null,null,"- 1 -",null,null,null,null,"Orden PRE/2315/2015"]

{"sheet":"Instrucciones","index":1,"n_rows":0,"n_cols":0,"rows_kept":0,"cut":false,"hidden":false,"merged":[]}

{"sheet":"lista botiquin C","index":2,"n_rows":73,"n_cols":7,"rows_kept":73,"cut":false,"hidden":false,"merged":[[25,0,25,2],[26,0,26,2],[24,0,24,2],[0,0,0,1],[4,0,4,6],[1,0,1,1],[3,0,3,1],[20,0,20,2],[2,0,2,1],[20,3,20,4],[5,3,5,4],[22,0,22,2],[21,0,21,2],[23,0,23,2],[72,5,72,6],[37,0,37,6],[39,3,39,6],[28,0,28,2],[27,0,27,2],[36,0,36,2],[33,0,33,2],[35,0,35,2],[30,0,30,2],[31,0,31,2],[32,0,32,2],[29,0,29,2],[34,0,34,2]]}
[{"$f":"IF(+identificacion!$D$3<>\"\",CONCATENATE(+identificacion!$D$3),\"\")","v":""}]
[{"$f":"CONCATENATE(\"Matrícula: \",+identificacion!D4,\"  -     \",\"N.I.B.: \",+identificacion!H4)","v":"Matrícula:   -     N.I.B.: "}]
[{"$f":"IF(+identificacion!$F$5<>\"\",+identificacion!$F$5,\"\")","v":""}]
[{"$f":"IF(AND(+identificacion!$D$6<>\"\",+identificacion!$F$10<>\"\"),CONCATENATE(identificacion!$D$6,\", \",+DAY(identificacion!$F$10),\"/\",MONTH(identificacion!$F$10),\"/\",YEAR(identificacion!$F$10)),IF(AND(+identificacion!$D$6<>\"\",+identificacion!$F$10=\"\"),CONCATENATE(identificacion!$D$6,\", \",\"Sin Fecha de Control\"),\"\"))","v":""}]
["REVISIÓN DEL BOTIQUÍN  C   (hasta 10 MN)"]
["CÓDIGO ATC","PRINCIPIO ACTIVO","PRESENTACIÓN","Cantidad Exigida",null,"Cantidad a Bordo","CADUCIDAD"]
["C01CA24","EPINEFRINA","1 mg. jeringa precargada 1 ml.",1,"caja"]
["C01DA","NITROGLICERINA","0,8 mg. 30 comp.",1,"caja"]
["A02AD","ALGELDRATO+HIDRÓXIDO DE MAGNESIO"," 600/300 mg. por comp. - 40 comp.",1,"caja"]
["A03FA01","METOCLOPRAMIDA","10 mg. 30 comp.",1,"caja"]
["A07DA03","LOPERAMIDA"," 2 mg. 20 cápsulas",1,"caja"]
["N02BE01","PARACETAMOL","1 g. 30 comp.",1,"caja"]
["M01AB05","DICLOFENACO SODICO","1% gel tópico  60 g.",1,"envase"]
["N02BB02","METAMIZOL","575 mg. 10 cápsulas",1,"caja"]
["R06AA","DIMENHIDRINATO"," 50 mg. 12 comp.",1,"envase"]
["D08AG02","POVIDONA","10 unidosis 5 ml.",1,"envase"]
["D08AJ","ALCOHOL DE 70°","Solución 50 ml.",1,"envase"]
["D08AC","CLORHEXIDINA","Solución tópica 1%. Frasco 25 ml.",1,"envase"]
[null,"SOLUCIÓN ANTISÉPTICA para higiene de manos.","Sobres o frasco 50 ml.",1,"envase"]
[null,"CORTICOIDE + OTROS","Gel de 30 g.",1,"envase"]
["MATERIAL MÉDICO",null,null,"Cantidad Exigida",null,"Cantidad a Bordo","CADUCIDAD"]
["GELATINA HEMOSTÁTICA esponja 200 x 70 x 0,5 mm.",null,null,1,"unidad"]
["CÁNULA PARA REANIMACIÓN BOCA A BOCA. TUBO DE GUEDEL núm. 3",null,null,1,"unidad"]
["CÁNULA PARA REANIMACIÓN BOCA A BOCA. TUBO DE GUEDEL núm. 4",null,null,1,"unidad"]
["VENDAS ELÁSTICAS 7 cm. x 4 m.",null,null,2,"unidades"]
["COMPRESAS DE GASA ESTÉRILES de 20 cm. x 20 cm. Caja con 25 unidades",null,null,1,"unidad"]
["ESPARADRAPO HIPOALERGÉNICO de  5 cm. x 10 m.",null,null,1,"unidad"]
["GUANTES DESECHABLES DE VINILO del núm. 8-9",null,null,4,"pares"]
["APÓSITOS AUTOADHESIVOS ESTÉRILES de 8 cm. x 10 cm. Caja con 5 unidades",null,null,1,"caja"]
["APÓSITOS ADHESIVOS PLÁSTICOS. Rollo de 6 cm. x 1 m.",null,null,1,"unidad"]
["SUTURAS ADHESIVAS. Paquete de 6 mm x 102 mm.",null,null,1,"paquete"]
["GASAS GRASAS de 7 cm. x 9 cm. Caja con 20 sobres",null,null,1,"caja"]
["TIJERA RECTA AGUDA ",null,null,1,"unidad"]
["PINZAS DE DISECCIÓN RECTAS SIN DIENTES ",null,null,1,"unidad"]
["GUÍA SANITARIA A BORDO",null,null,1,"ejemplar"]
["FÉRULAS DE ALUMINIO MALEABLE PARA DEDOS 2 cm. x 50 cm.",null,null,1,"tira"]
["CABESTRILLO o VENDA TRIANGULAR ",null,null,1,"unidad"]
[]
[]
[null,"Firma del responsable de sanitario a bordo",null,"Firma y Sello del responsable de la revisión"]
[null,{"$f":"IF(+identificacion!$H$7<>\"\",+identificacion!$H$7,\"\")","v":""}]
[]
[]
[]
[]
[]
[]
[]
[]
[]
[]
[]
[]
[]
[]
[]
[]
[]
[]
[]
[]
[]
[]
[]
[]
[]
[]
[]
[]
[]
[]
[]
["Orden PRE/2315/2015",null,"- 2 -",null,null,{"$f":"CONCATENATE(\"Fecha de impresión: \",+DAY(TODAY()),\"/\",MONTH(TODAY()),\"/\",YEAR(TODAY()))","v":"Fecha de impresión: 30/4/2016"}]

{"sheet":"Sit","index":3,"n_rows":4,"n_cols":5,"rows_kept":4,"cut":false,"hidden":true,"merged":[]}
[null,"sin fecha de caducidad",null,null,""]
[null,"CADUCADO"]
[null,"PROXIMO A CADUCAR"]
[null,"EN FECHA"]

{"sheet":"Ghost","index":4,"n_rows":31,"n_cols":23,"rows_kept":31,"cut":false,"hidden":true,"merged":[]}
["CODIGO ATC","PRINCIPIO ACTIVO","PRESENTACION","ce0","ce_ud0","cab0","CADUCIDAD","Control","ce_menos_cab","Estado de la dotación","Aux01existencias","Existencias","id","ce","ce_ud","cab","ud_rep","f_cadu","orden","codigo","PA_MS","Presenta","observa"]
[{"$f":"IF('lista botiquin C'!A7<>\"\",'lista botiquin C'!A7,\"\")","v":"C01CA24"},{"$f":"+'lista botiquin C'!B7","v":"EPINEFRINA"},{"$f":"+'lista botiquin C'!C7","v":"1 mg. jeringa precargada 1 ml."},{"$f":"+'lista botiquin C'!D7","v":1},{"$f":"+'lista botiquin C'!E7","v":"caja"},{"$f":"+'lista botiquin C'!F7","v":0},{"$f":"IF('lista botiquin C'!G7<>\"\",'lista botiquin C'!G7,\"\")","v":""},{"$f":"IF(+G2=\"\",Sit!$B$1,IF(TODAY()>=Ghost!G2,+Sit!$B$2,IF(TODAY()>=Ghost!G2-30,Sit!$B$3,Sit!$B$4)))","v":"sin fecha de caducidad"},{"$f":"+D2-F2","v":1},{"$f":"CONCATENATE(L2,\"  --> \",H2)","v":"cantidad sin cumplimentar  --> sin fecha de caducidad"},{"$f":"IF('lista botiquin C'!F7=\"\",\"cantidad sin cumplimentar\",\n\nIF(I2=0,\"cantidad exigida\",\n\nIF(I2=1,\"falta1ud\",\n\nIF(I2>1,\"faltanuds\",\n\nIF(I2<0,\"dotación con excedentes\",\"VER\" )))))","v":"cantidad sin cumplimentar"},{"$f":"IF(AND(K2=\"falta1ud\",F2=0), CONCATENATE(\"sin existencias /\"&\" falta \"&+I2& \" unidad\"),\nIF(AND(K2=\"falta1ud\",F2=1), CONCATENATE(\"queda \"&+F2&\" unidad /\"&\" falta \"&+I2& \" unidad\"),\nIF(AND(K2=\"falta1ud\",F2>1), CONCATENATE(\"quedan \"&+F2&\" unidades /\"&\" falta \"&+I2& \" unidad\"),\nIF(AND(K2=\"faltanuds\",F2=0),CONCATENATE(\"sin existencias /\"&\" faltan \"&+I2& \" unidades\"),\nIF(AND(K2=\"faltanuds\",F2=1),CONCATENATE(\"queda \"&+F2&\" unidad /\"&\" faltan \"&+I2& \" unidades\"),\nIF(AND(K2=\"faltanuds\",F2>1),CONCATENATE(\"quedan \"&+F2&\" unidades /\"&\" faltan \"&+I2& \" unidades\"),\n+K2))))))","v":"cantidad sin cumplimentar"},"C10PA01",1,"caja",{"$f":"+F2","v":0},{"$f":"+'Consulta situacion del botiquin'!G5","v":0},{"$f":"+G2","v":""},1,"C01CA24","EPINEFRINA","1 mg. jeringa precargada 1 ml."]
[{"$f":"IF('lista botiquin C'!A8<>\"\",'lista botiquin C'!A8,\"\")","v":"C01DA"},{"$f":"+'lista botiquin C'!B8","v":"NITROGLICERINA"},{"$f":"+'lista botiquin C'!C8","v":"0,8 mg. 30 comp."},{"$f":"+'lista botiquin C'!D8","v":1},{"$f":"+'lista botiquin C'!E8","v":"caja"},{"$f":"+'lista botiquin C'!F8","v":0},{"$f":"IF('lista botiquin C'!G8<>\"\",'lista botiquin C'!G8,\"\")","v":""},{"$f":"IF(+G3=\"\",Sit!$B$1,IF(TODAY()>=Ghost!G3,+Sit!$B$2,IF(TODAY()>=Ghost!G3-30,Sit!$B$3,Sit!$B$4)))","v":"sin fecha de caducidad"},{"$f":"+D3-F3","v":1},{"$f":"CONCATENATE(L3,\"  --> \",H3)","v":"cantidad sin cumplimentar  --> sin fecha de caducidad"},{"$f":"IF('lista botiquin C'!F8=\"\",\"cantidad sin cumplimentar\",\n\nIF(I3=0,\"cantidad exigida\",\n\nIF(I3=1,\"falta1ud\",\n\nIF(I3>1,\"faltanuds\",\n\nIF(I3<0,\"dotación con excedentes\",\"VER\" )))))","v":"cantidad sin cumplimentar"},{"$f":"IF(AND(K3=\"falta1ud\",F3=0), CONCATENATE(\"sin existencias /\"&\" falta \"&+I3& \" unidad\"),\nIF(AND(K3=\"falta1ud\",F3=1), CONCATENATE(\"queda \"&+F3&\" unidad /\"&\" falta \"&+I3& \" unidad\"),\nIF(AND(K3=\"falta1ud\",F3>1), CONCATENATE(\"quedan \"&+F3&\" unidades /\"&\" falta \"&+I3& \" unidad\"),\nIF(AND(K3=\"faltanuds\",F3=0),CONCATENATE(\"sin existencias /\"&\" faltan \"&+I3& \" unidades\"),\nIF(AND(K3=\"faltanuds\",F3=1),CONCATENATE(\"queda \"&+F3&\" unidad /\"&\" faltan \"&+I3& \" unidades\"),\nIF(AND(K3=\"faltanuds\",F3>1),CONCATENATE(\"quedan \"&+F3&\" unidades /\"&\" faltan \"&+I3& \" unidades\"),\n+K3))))))","v":"cantidad sin cumplimentar"},"C10PA02",1,"caja",{"$f":"+F3","v":0},{"$f":"+'Consulta situacion del botiquin'!G6","v":0},{"$f":"+G3","v":""},2,"C01DA","NITROGLICERINA","0,8 mg. 30 comp."]
[{"$f":"IF('lista botiquin C'!A9<>\"\",'lista botiquin C'!A9,\"\")","v":"A02AD"},{"$f":"+'lista botiquin C'!B9","v":"ALGELDRATO+HIDRÓXIDO DE MAGNESIO"},{"$f":"+'lista botiquin C'!C9","v":" 600/300 mg. por comp. - 40 comp."},{"$f":"+'lista botiquin C'!D9","v":1},{"$f":"+'lista botiquin C'!E9","v":"caja"},{"$f":"+'lista botiquin C'!F9","v":0},{"$f":"IF('lista botiquin C'!G9<>\"\",'lista botiquin C'!G9,\"\")","v":""},{"$f":"IF(+G4=\"\",Sit!$B$1,IF(TODAY()>=Ghost!G4,+Sit!$B$2,IF(TODAY()>=Ghost!G4-30,Sit!$B$3,Sit!$B$4)))","v":"sin fecha de caducidad"},1,"cantidad sin cumplimentar  --> sin fecha de caducidad",{"$f":"IF('lista botiquin C'!F9=\"\",\"cantidad sin cumplimentar\",\n\nIF(I4=0,\"cantidad exigida\",\n\nIF(I4=1,\"falta1ud\",\n\nIF(I4>1,\"faltanuds\",\n\nIF(I4<0,\"dotación con excedentes\",\"VER\" )))))","v":"cantidad sin cumplimentar"},"cantidad sin cumplimentar","C10PA03",1,"caja",0,{"$f":"+'Consulta situacion del botiquin'!G7","v":0},"",3,"A02AD","ALGELDRATO+HIDRÓXIDO DE MAGNESIO"," 600/300 mg. por comp. - 40 comp."]
[{"$f":"IF('lista botiquin C'!A10<>\"\",'lista botiquin C'!A10,\"\")","v":"A03FA01"},{"$f":"+'lista botiquin C'!B10","v":"METOCLOPRAMIDA"},{"$f":"+'lista botiquin C'!C10","v":"10 mg. 30 comp."},{"$f":"+'lista botiquin C'!D10","v":1},{"$f":"+'lista botiquin C'!E10","v":"caja"},{"$f":"+'lista botiquin C'!F10","v":0},{"$f":"IF('lista botiquin C'!G10<>\"\",'lista botiquin C'!G10,\"\")","v":""},{"$f":"IF(+G5=\"\",Sit!$B$1,IF(TODAY()>=Ghost!G5,+Sit!$B$2,IF(TODAY()>=Ghost!G5-30,Sit!$B$3,Sit!$B$4)))","v":"sin fecha de caducidad"},1,"cantidad sin cumplimentar  --> sin fecha de caducidad",{"$f":"IF('lista botiquin C'!F10=\"\",\"cantidad sin cumplimentar\",\n\nIF(I5=0,\"cantidad exigida\",\n\nIF(I5=1,\"falta1ud\",\n\nIF(I5>1,\"faltanuds\",\n\nIF(I5<0,\"dotación con excedentes\",\"VER\" )))))","v":"cantidad sin cumplimentar"},"cantidad sin cumplimentar","C10PA04",1,"caja",0,{"$f":"+'Consulta situacion del botiquin'!G8","v":0},"",4,"A03FA01","METOCLOPRAMIDA","10 mg. 30 comp."]
[{"$f":"IF('lista botiquin C'!A11<>\"\",'lista botiquin C'!A11,\"\")","v":"A07DA03"},{"$f":"+'lista botiquin C'!B11","v":"LOPERAMIDA"},{"$f":"+'lista botiquin C'!C11","v":" 2 mg. 20 cápsulas"},{"$f":"+'lista botiquin C'!D11","v":1},{"$f":"+'lista botiquin C'!E11","v":"caja"},{"$f":"+'lista botiquin C'!F11","v":0},{"$f":"IF('lista botiquin C'!G11<>\"\",'lista botiquin C'!G11,\"\")","v":""},{"$f":"IF(+G6=\"\",Sit!$B$1,IF(TODAY()>=Ghost!G6,+Sit!$B$2,IF(TODAY()>=Ghost!G6-30,Sit!$B$3,Sit!$B$4)))","v":"sin fecha de caducidad"},1,"cantidad sin cumplimentar  --> sin fecha de caducidad",{"$f":"IF('lista botiquin C'!F11=\"\",\"cantidad sin cumplimentar\",\n\nIF(I6=0,\"cantidad exigida\",\n\nIF(I6=1,\"falta1ud\",\n\nIF(I6>1,\"faltanuds\",\n\nIF(I6<0,\"dotación con excedentes\",\"VER\" )))))","v":"cantidad sin cumplimentar"},"cantidad sin cumplimentar","C10PA05",1,"caja",0,{"$f":"+'Consulta situacion del botiquin'!G9","v":0},"",5,"A07DA03","LOPERAMIDA"," 2 mg. 20 cápsulas"]
[{"$f":"IF('lista botiquin C'!A12<>\"\",'lista botiquin C'!A12,\"\")","v":"N02BE01"},{"$f":"+'lista botiquin C'!B12","v":"PARACETAMOL"},{"$f":"+'lista botiquin C'!C12","v":"1 g. 30 comp."},{"$f":"+'lista botiquin C'!D12","v":1},{"$f":"+'lista botiquin C'!E12","v":"caja"},{"$f":"+'lista botiquin C'!F12","v":0},{"$f":"IF('lista botiquin C'!G12<>\"\",'lista botiquin C'!G12,\"\")","v":""},{"$f":"IF(+G7=\"\",Sit!$B$1,IF(TODAY()>=Ghost!G7,+Sit!$B$2,IF(TODAY()>=Ghost!G7-30,Sit!$B$3,Sit!$B$4)))","v":"sin fecha de caducidad"},1,"cantidad sin cumplimentar  --> sin fecha de caducidad",{"$f":"IF('lista botiquin C'!F12=\"\",\"cantidad sin cumplimentar\",\n\nIF(I7=0,\"cantidad exigida\",\n\nIF(I7=1,\"falta1ud\",\n\nIF(I7>1,\"faltanuds\",\n\nIF(I7<0,\"dotación con excedentes\",\"VER\" )))))","v":"cantidad sin cumplimentar"},"cantidad sin cumplimentar","C10PA06",1,"caja",0,{"$f":"+'Consulta situacion del botiquin'!G10","v":0},"",6,"N02BE01","PARACETAMOL","1 g. 30 comp"]
[{"$f":"IF('lista botiquin C'!A13<>\"\",'lista botiquin C'!A13,\"\")","v":"M01AB05"},{"$f":"+'lista botiquin C'!B13","v":"DICLOFENACO SODICO"},{"$f":"+'lista botiquin C'!C13","v":"1% gel tópico  60 g."},{"$f":"+'lista botiquin C'!D13","v":1},{"$f":"+'lista botiquin C'!E13","v":"envase"},{"$f":"+'lista botiquin C'!F13","v":0},{"$f":"IF('lista botiquin C'!G13<>\"\",'lista botiquin C'!G13,\"\")","v":""},{"$f":"IF(+G8=\"\",Sit!$B$1,IF(TODAY()>=Ghost!G8,+Sit!$B$2,IF(TODAY()>=Ghost!G8-30,Sit!$B$3,Sit!$B$4)))","v":"sin fecha de caducidad"},1,"cantidad sin cumplimentar  --> sin fecha de caducidad",{"$f":"IF('lista botiquin C'!F13=\"\",\"cantidad sin cumplimentar\",\n\nIF(I8=0,\"cantidad exigida\",\n\nIF(I8=1,\"falta1ud\",\n\nIF(I8>1,\"faltanuds\",\n\nIF(I8<0,\"dotación con excedentes\",\"VER\" )))))","v":"cantidad sin cumplimentar"},"cantidad sin cumplimentar","C10PA07",1,"envase",0,{"$f":"+'Consulta situacion del botiquin'!G11","v":0},"",7,"M01AB05","DICLOFENACO SODICO","1% gel tópico  60 g."]
[{"$f":"IF('lista botiquin C'!A14<>\"\",'lista botiquin C'!A14,\"\")","v":"N02BB02"},{"$f":"+'lista botiquin C'!B14","v":"METAMIZOL"},{"$f":"+'lista botiquin C'!C14","v":"575 mg. 10 cápsulas"},{"$f":"+'lista botiquin C'!D14","v":1},{"$f":"+'lista botiquin C'!E14","v":"caja"},{"$f":"+'lista botiquin C'!F14","v":0},{"$f":"IF('lista botiquin C'!G14<>\"\",'lista botiquin C'!G14,\"\")","v":""},{"$f":"IF(+G9=\"\",Sit!$B$1,IF(TODAY()>=Ghost!G9,+Sit!$B$2,IF(TODAY()>=Ghost!G9-30,Sit!$B$3,Sit!$B$4)))","v":"sin fecha de caducidad"},1,"cantidad sin cumplimentar  --> sin fecha de caducidad",{"$f":"IF('lista botiquin C'!F14=\"\",\"cantidad sin cumplimentar\",\n\nIF(I9=0,\"cantidad exigida\",\n\nIF(I9=1,\"falta1ud\",\n\nIF(I9>1,\"faltanuds\",\n\nIF(I9<0,\"dotación con excedentes\",\"VER\" )))))","v":"cantidad sin cumplimentar"},"cantidad sin cumplimentar","C10PA08",1,"caja",0,{"$f":"+'Consulta situacion del botiquin'!G12","v":0},"",8,"N02BB02","METAMIZOL","575 mg. 10 cápsulas"]
[{"$f":"IF('lista botiquin C'!A15<>\"\",'lista botiquin C'!A15,\"\")","v":"R06AA"},{"$f":"+'lista botiquin C'!B15","v":"DIMENHIDRINATO"},{"$f":"+'lista botiquin C'!C15","v":" 50 mg. 12 comp."},{"$f":"+'lista botiquin C'!D15","v":1},{"$f":"+'lista botiquin C'!E15","v":"envase"},{"$f":"+'lista botiquin C'!F15","v":0},{"$f":"IF('lista botiquin C'!G15<>\"\",'lista botiquin C'!G15,\"\")","v":""},{"$f":"IF(+G10=\"\",Sit!$B$1,IF(TODAY()>=Ghost!G10,+Sit!$B$2,IF(TODAY()>=Ghost!G10-30,Sit!$B$3,Sit!$B$4)))","v":"sin fecha de caducidad"},1,"cantidad sin cumplimentar  --> sin fecha de caducidad",{"$f":"IF('lista botiquin C'!F15=\"\",\"cantidad sin cumplimentar\",\n\nIF(I10=0,\"cantidad exigida\",\n\nIF(I10=1,\"falta1ud\",\n\nIF(I10>1,\"faltanuds\",\n\nIF(I10<0,\"dotación con excedentes\",\"VER\" )))))","v":"cantidad sin cumplimentar"},"cantidad sin cumplimentar","C10PA09",1,"envase",0,{"$f":"+'Consulta situacion del botiquin'!G13","v":0},"",9,"R06AA","DIMENHIDRINATO"," 50 mg. 12 comp."]
[{"$f":"IF('lista botiquin C'!A16<>\"\",'lista botiquin C'!A16,\"\")","v":"D08AG02"},{"$f":"+'lista botiquin C'!B16","v":"POVIDONA"},{"$f":"+'lista botiquin C'!C16","v":"10 unidosis 5 ml."},{"$f":"+'lista botiquin C'!D16","v":1},{"$f":"+'lista botiquin C'!E16","v":"envase"},{"$f":"+'lista botiquin C'!F16","v":0},{"$f":"IF('lista botiquin C'!G16<>\"\",'lista botiquin C'!G16,\"\")","v":""},{"$f":"IF(+G11=\"\",Sit!$B$1,IF(TODAY()>=Ghost!G11,+Sit!$B$2,IF(TODAY()>=Ghost!G11-30,Sit!$B$3,Sit!$B$4)))","v":"sin fecha de caducidad"},1,"cantidad sin cumplimentar  --> sin fecha de caducidad",{"$f":"IF('lista botiquin C'!F16=\"\",\"cantidad sin cumplimentar\",\n\nIF(I11=0,\"cantidad exigida\",\n\nIF(I11=1,\"falta1ud\",\n\nIF(I11>1,\"faltanuds\",\n\nIF(I11<0,\"dotación con excedentes\",\"VER\" )))))","v":"cantidad sin cumplimentar"},"cantidad sin cumplimentar","C10PA10",1,"envase",0,{"$f":"+'Consulta situacion del botiquin'!G14","v":0},"",10,"D08AG02","POVIDONA","10 unidosis 5 ml."]
[{"$f":"IF('lista botiquin C'!A17<>\"\",'lista botiquin C'!A17,\"\")","v":"D08AJ"},{"$f":"+'lista botiquin C'!B17","v":"ALCOHOL DE 70°"},{"$f":"+'lista botiquin C'!C17","v":"Solución 50 ml."},{"$f":"+'lista botiquin C'!D17","v":1},{"$f":"+'lista botiquin C'!E17","v":"envase"},{"$f":"+'lista botiquin C'!F17","v":0},{"$f":"IF('lista botiquin C'!G17<>\"\",'lista botiquin C'!G17,\"\")","v":""},{"$f":"IF(+G12=\"\",Sit!$B$1,IF(TODAY()>=Ghost!G12,+Sit!$B$2,IF(TODAY()>=Ghost!G12-30,Sit!$B$3,Sit!$B$4)))","v":"sin fecha de caducidad"},1,"cantidad sin cumplimentar  --> sin fecha de caducidad",{"$f":"IF('lista botiquin C'!F17=\"\",\"cantidad sin cumplimentar\",\n\nIF(I12=0,\"cantidad exigida\",\n\nIF(I12=1,\"falta1ud\",\n\nIF(I12>1,\"faltanuds\",\n\nIF(I12<0,\"dotación con excedentes\",\"VER\" )))))","v":"cantidad sin cumplimentar"},"cantidad sin cumplimentar","C10PA11",1,"envase",0,{"$f":"+'Consulta situacion del botiquin'!G15","v":0},"",11,"D08AJ","ALCOHOL DE 70°","Solución 50 ml."]
[{"$f":"IF('lista botiquin C'!A18<>\"\",'lista botiquin C'!A18,\"\")","v":"D08AC"},{"$f":"+'lista botiquin C'!B18","v":"CLORHEXIDINA"},{"$f":"+'lista botiquin C'!C18","v":"Solución tópica 1%. Frasco 25 ml."},{"$f":"+'lista botiquin C'!D18","v":1},{"$f":"+'lista botiquin C'!E18","v":"envase"},{"$f":"+'lista botiquin C'!F18","v":0},{"$f":"IF('lista botiquin C'!G18<>\"\",'lista botiquin C'!G18,\"\")","v":""},{"$f":"IF(+G13=\"\",Sit!$B$1,IF(TODAY()>=Ghost!G13,+Sit!$B$2,IF(TODAY()>=Ghost!G13-30,Sit!$B$3,Sit!$B$4)))","v":"sin fecha de caducidad"},1,"cantidad sin cumplimentar  --> sin fecha de caducidad",{"$f":"IF('lista botiquin C'!F18=\"\",\"cantidad sin cumplimentar\",\n\nIF(I13=0,\"cantidad exigida\",\n\nIF(I13=1,\"falta1ud\",\n\nIF(I13>1,\"faltanuds\",\n\nIF(I13<0,\"dotación con excedentes\",\"VER\" )))))","v":"cantidad sin cumplimentar"},"cantidad sin cumplimentar","C10PA12",1,"envase",0,{"$f":"+'Consulta situacion del botiquin'!G16","v":0},"",12,"D08AC","CLORHEXIDINA","Solución tópica 1%. Frasco 25 ml."]
[{"$f":"IF('lista botiquin C'!A19<>\"\",'lista botiquin C'!A19,\"\")","v":""},{"$f":"+'lista botiquin C'!B19","v":"SOLUCIÓN ANTISÉPTICA para higiene de manos."},{"$f":"+'lista botiquin C'!C19","v":"Sobres o frasco 50 ml."},{"$f":"+'lista botiquin C'!D19","v":1},{"$f":"+'lista botiquin C'!E19","v":"envase"},{"$f":"+'lista botiquin C'!F19","v":0},{"$f":"IF('lista botiquin C'!G19<>\"\",'lista botiquin C'!G19,\"\")","v":""},{"$f":"IF(+G14=\"\",Sit!$B$1,IF(TODAY()>=Ghost!G14,+Sit!$B$2,IF(TODAY()>=Ghost!G14-30,Sit!$B$3,Sit!$B$4)))","v":"sin fecha de caducidad"},1,"cantidad sin cumplimentar  --> sin fecha de caducidad",{"$f":"IF('lista botiquin C'!F19=\"\",\"cantidad sin cumplimentar\",\n\nIF(I14=0,\"cantidad exigida\",\n\nIF(I14=1,\"falta1ud\",\n\nIF(I14>1,\"faltanuds\",\n\nIF(I14<0,\"dotación con excedentes\",\"VER\" )))))","v":"cantidad sin cumplimentar"},"cantidad sin cumplimentar","C10PA13",1,"envase",0,{"$f":"+'Consulta situacion del botiquin'!G17","v":0},"",13,null,"SOLUCIÓN ANTISÉPTICA para higiene de manos.","Sobres o frasco 50 ml."]
[{"$f":"IF('lista botiquin C'!A20<>\"\",'lista botiquin C'!A20,\"\")","v":""},{"$f":"+'lista botiquin C'!B20","v":"CORTICOIDE + OTROS"},{"$f":"+'lista botiquin C'!C20","v":"Gel de 30 g."},{"$f":"+'lista botiquin C'!D20","v":1},{"$f":"+'lista botiquin C'!E20","v":"envase"},{"$f":"+'lista botiquin C'!F20","v":0},{"$f":"IF('lista botiquin C'!G20<>\"\",'lista botiquin C'!G20,\"\")","v":""},{"$f":"IF(+G15=\"\",Sit!$B$1,IF(TODAY()>=Ghost!G15,+Sit!$B$2,IF(TODAY()>=Ghost!G15-30,Sit!$B$3,Sit!$B$4)))","v":"sin fecha de caducidad"},1,"cantidad sin cumplimentar  --> sin fecha de caducidad",{"$f":"IF('lista botiquin C'!F20=\"\",\"cantidad sin cumplimentar\",\n\nIF(I15=0,\"cantidad exigida\",\n\nIF(I15=1,\"falta1ud\",\n\nIF(I15>1,\"faltanuds\",\n\nIF(I15<0,\"dotación con excedentes\",\"VER\" )))))","v":"cantidad sin cumplimentar"},"cantidad sin cumplimentar","C10PA14",1,"envase",0,{"$f":"+'Consulta situacion del botiquin'!G18","v":0},"",14,null,"CORTICOIDE + OTROS","Gel de 30 g."]
[{"$f":"IF('lista botiquin C'!A22<>\"\",'lista botiquin C'!A22,\"\")","v":"GELATINA HEMOSTÁTICA esponja 200 x 70 x 0,5 mm."},{"$f":"IF('lista botiquin C'!B22<>\"\",'lista botiquin C'!B22,\"-\")","v":"-"},{"$f":"IF('lista botiquin C'!C22<>\"\",'lista botiquin C'!C22,\"-\")","v":"-"},{"$f":"+'lista botiquin C'!D22","v":1},{"$f":"+'lista botiquin C'!E22","v":"unidad"},{"$f":"+'lista botiquin C'!F22","v":0},{"$f":"IF('lista botiquin C'!G22<>\"\",'lista botiquin C'!G22,\"\")","v":""},{"$f":"IF(+G16=\"\",Sit!$B$1,IF(TODAY()>=Ghost!G16,+Sit!$B$2,IF(TODAY()>=Ghost!G16-30,Sit!$B$3,Sit!$B$4)))","v":"sin fecha de caducidad"},{"$f":"+D16-F16","v":1},"cantidad sin cumplimentar  --> sin fecha de caducidad",{"$f":"IF('lista botiquin C'!F22=\"\",\"cantidad sin cumplimentar\",\n\nIF(I16=0,\"cantidad exigida\",\n\nIF(I16=1,\"falta1ud\",\n\nIF(I16>1,\"faltanuds\",\n\nIF(I16<0,\"dotación con excedentes\",\"VER\" )))))","v":"cantidad sin cumplimentar"},{"$f":"IF(AND(K16=\"falta1ud\",F16=0), CONCATENATE(\"sin existencias /\"&\" falta \"&+I16& \" unidad\"),\nIF(AND(K16=\"falta1ud\",F16=1), CONCATENATE(\"queda \"&+F16&\" unidad /\"&\" falta \"&+I16& \" unidad\"),\nIF(AND(K16=\"falta1ud\",F16>1), CONCATENATE(\"quedan \"&+F16&\" unidades /\"&\" falta \"&+I16& \" unidad\"),\nIF(AND(K16=\"faltanuds\",F16=0),CONCATENATE(\"sin existencias /\"&\" faltan \"&+I16& \" unidades\"),\nIF(AND(K16=\"faltanuds\",F16=1),CONCATENATE(\"queda \"&+F16&\" unidad /\"&\" faltan \"&+I16& \" unidades\"),\nIF(AND(K16=\"faltanuds\",F16>1),CONCATENATE(\"quedan \"&+F16&\" unidades /\"&\" faltan \"&+I16& \" unidades\"),\n+K16))))))","v":"cantidad sin cumplimentar"},"C10MS01",1,"unidad",0,{"$f":"+'Consulta situacion del botiquin'!O5","v":0},"",15,null,"GELATINA HEMOSTÁTICA esponja 200 x 70 x 0,5 mm."]
[{"$f":"IF('lista botiquin C'!A23<>\"\",'lista botiquin C'!A23,\"\")","v":"CÁNULA PARA REANIMACIÓN BOCA A BOCA. TUBO DE GUEDEL núm. 3"},{"$f":"IF('lista botiquin C'!B23<>\"\",'lista botiquin C'!B23,\"-\")","v":"-"},{"$f":"IF('lista botiquin C'!C23<>\"\",'lista botiquin C'!C23,\"-\")","v":"-"},{"$f":"+'lista botiquin C'!D23","v":1},{"$f":"+'lista botiquin C'!E23","v":"unidad"},{"$f":"+'lista botiquin C'!F23","v":0},{"$f":"IF('lista botiquin C'!G23<>\"\",'lista botiquin C'!G23,\"\")","v":""},{"$f":"IF(+G17=\"\",Sit!$B$1,IF(TODAY()>=Ghost!G17,+Sit!$B$2,IF(TODAY()>=Ghost!G17-30,Sit!$B$3,Sit!$B$4)))","v":"sin fecha de caducidad"},1,{"$f":"CONCATENATE(L17,\"  --> \",H17)","v":"cantidad sin cumplimentar  --> sin fecha de caducidad"},{"$f":"IF('lista botiquin C'!F23=\"\",\"cantidad sin cumplimentar\",\n\nIF(I17=0,\"cantidad exigida\",\n\nIF(I17=1,\"falta1ud\",\n\nIF(I17>1,\"faltanuds\",\n\nIF(I17<0,\"dotación con excedentes\",\"VER\" )))))","v":"cantidad sin cumplimentar"},{"$f":"IF(AND(K17=\"falta1ud\",F17=0), CONCATENATE(\"sin existencias /\"&\" falta \"&+I17& \" unidad\"),\nIF(AND(K17=\"falta1ud\",F17=1), CONCATENATE(\"queda \"&+F17&\" unidad /\"&\" falta \"&+I17& \" unidad\"),\nIF(AND(K17=\"falta1ud\",F17>1), CONCATENATE(\"quedan \"&+F17&\" unidades /\"&\" falta \"&+I17& \" unidad\"),\nIF(AND(K17=\"faltanuds\",F17=0),CONCATENATE(\"sin existencias /\"&\" faltan \"&+I17& \" unidades\"),\nIF(AND(K17=\"faltanuds\",F17=1),CONCATENATE(\"queda \"&+F17&\" unidad /\"&\" faltan \"&+I17& \" unidades\"),\nIF(AND(K17=\"faltanuds\",F17>1),CONCATENATE(\"quedan \"&+F17&\" unidades /\"&\" faltan \"&+I17& \" unidades\"),\n+K17))))))","v":"cantidad sin cumplimentar"},"C10MS02",1,"unidad",0,{"$f":"+'Consulta situacion del botiquin'!O6","v":0},"",16,null,"CÁNULA PARA REANIMACIÓN BOCA A BOCA. TUBO DE GUEDEL núm. 3"]
[{"$f":"IF('lista botiquin C'!A24<>\"\",'lista botiquin C'!A24,\"\")","v":"CÁNULA PARA REANIMACIÓN BOCA A BOCA. TUBO DE GUEDEL núm. 4"},{"$f":"IF('lista botiquin C'!B24<>\"\",'lista botiquin C'!B24,\"-\")","v":"-"},{"$f":"IF('lista botiquin C'!C24<>\"\",'lista botiquin C'!C24,\"-\")","v":"-"},{"$f":"+'lista botiquin C'!D24","v":1},{"$f":"+'lista botiquin C'!E24","v":"unidad"},{"$f":"+'lista botiquin C'!F24","v":0},{"$f":"IF('lista botiquin C'!G24<>\"\",'lista botiquin C'!G24,\"\")","v":""},{"$f":"IF(+G18=\"\",Sit!$B$1,IF(TODAY()>=Ghost!G18,+Sit!$B$2,IF(TODAY()>=Ghost!G18-30,Sit!$B$3,Sit!$B$4)))","v":"sin fecha de caducidad"},1,"cantidad sin cumplimentar  --> sin fecha de caducidad",{"$f":"IF('lista botiquin C'!F24=\"\",\"cantidad sin cumplimentar\",\n\nIF(I18=0,\"cantidad exigida\",\n\nIF(I18=1,\"falta1ud\",\n\nIF(I18>1,\"faltanuds\",\n\nIF(I18<0,\"dotación con excedentes\",\"VER\" )))))","v":"cantidad sin cumplimentar"},"cantidad sin cumplimentar","C10MS03",1,"unidad",0,{"$f":"+'Consulta situacion del botiquin'!O7","v":0},"",17,null,"CÁNULA PARA REANIMACIÓN BOCA A BOCA. TUBO DE GUEDEL núm. 4"]
[{"$f":"IF('lista botiquin C'!A25<>\"\",'lista botiquin C'!A25,\"\")","v":"VENDAS ELÁSTICAS 7 cm. x 4 m."},{"$f":"IF('lista botiquin C'!B25<>\"\",'lista botiquin C'!B25,\"-\")","v":"-"},{"$f":"IF('lista botiquin C'!C25<>\"\",'lista botiquin C'!C25,\"-\")","v":"-"},{"$f":"+'lista botiquin C'!D25","v":2},{"$f":"+'lista botiquin C'!E25","v":"unidades"},{"$f":"+'lista botiquin C'!F25","v":0},{"$f":"IF('lista botiquin C'!G25<>\"\",'lista botiquin C'!G25,\"\")","v":""},{"$f":"IF(+G19=\"\",Sit!$B$1,IF(TODAY()>=Ghost!G19,+Sit!$B$2,IF(TODAY()>=Ghost!G19-30,Sit!$B$3,Sit!$B$4)))","v":"sin fecha de caducidad"},2,"cantidad sin cumplimentar  --> sin fecha de caducidad",{"$f":"IF('lista botiquin C'!F25=\"\",\"cantidad sin cumplimentar\",\n\nIF(I19=0,\"cantidad exigida\",\n\nIF(I19=1,\"falta1ud\",\n\nIF(I19>1,\"faltanuds\",\n\nIF(I19<0,\"dotación con excedentes\",\"VER\" )))))","v":"cantidad sin cumplimentar"},"cantidad sin cumplimentar","C10MS04",2,"unidades",0,{"$f":"+'Consulta situacion del botiquin'!O8","v":0},"",18,null,"VENDAS ELÁSTICAS 7 cm. x 4 m"]
[{"$f":"IF('lista botiquin C'!A26<>\"\",'lista botiquin C'!A26,\"\")","v":"COMPRESAS DE GASA ESTÉRILES de 20 cm. x 20 cm. Caja con 25 unidades"},{"$f":"IF('lista botiquin C'!B26<>\"\",'lista botiquin C'!B26,\"-\")","v":"-"},{"$f":"IF('lista botiquin C'!C26<>\"\",'lista botiquin C'!C26,\"-\")","v":"-"},{"$f":"+'lista botiquin C'!D26","v":1},{"$f":"+'lista botiquin C'!E26","v":"unidad"},{"$f":"+'lista botiquin C'!F26","v":0},{"$f":"IF('lista botiquin C'!G26<>\"\",'lista botiquin C'!G26,\"\")","v":""},{"$f":"IF(+G20=\"\",Sit!$B$1,IF(TODAY()>=Ghost!G20,+Sit!$B$2,IF(TODAY()>=Ghost!G20-30,Sit!$B$3,Sit!$B$4)))","v":"sin fecha de caducidad"},1,"cantidad sin cumplimentar  --> sin fecha de caducidad",{"$f":"IF('lista botiquin C'!F26=\"\",\"cantidad sin cumplimentar\",\n\nIF(I20=0,\"cantidad exigida\",\n\nIF(I20=1,\"falta1ud\",\n\nIF(I20>1,\"faltanuds\",\n\nIF(I20<0,\"dotación con excedentes\",\"VER\" )))))","v":"cantidad sin cumplimentar"},"cantidad sin cumplimentar","C10MS05",1,"unidad",0,{"$f":"+'Consulta situacion del botiquin'!O9","v":0},"",19,null,"COMPRESAS DE GASA ESTÉRILES de 20 cm. x 20 cm.","Caja con 25 unidades"]
[{"$f":"IF('lista botiquin C'!A27<>\"\",'lista botiquin C'!A27,\"\")","v":"ESPARADRAPO HIPOALERGÉNICO de  5 cm. x 10 m."},{"$f":"IF('lista botiquin C'!B27<>\"\",'lista botiquin C'!B27,\"-\")","v":"-"},{"$f":"IF('lista botiquin C'!C27<>\"\",'lista botiquin C'!C27,\"-\")","v":"-"},{"$f":"+'lista botiquin C'!D27","v":1},{"$f":"+'lista botiquin C'!E27","v":"unidad"},{"$f":"+'lista botiquin C'!F27","v":0},{"$f":"IF('lista botiquin C'!G27<>\"\",'lista botiquin C'!G27,\"\")","v":""},{"$f":"IF(+G21=\"\",Sit!$B$1,IF(TODAY()>=Ghost!G21,+Sit!$B$2,IF(TODAY()>=Ghost!G21-30,Sit!$B$3,Sit!$B$4)))","v":"sin fecha de caducidad"},1,"cantidad sin cumplimentar  --> sin fecha de caducidad",{"$f":"IF('lista botiquin C'!F27=\"\",\"cantidad sin cumplimentar\",\n\nIF(I21=0,\"cantidad exigida\",\n\nIF(I21=1,\"falta1ud\",\n\nIF(I21>1,\"faltanuds\",\n\nIF(I21<0,\"dotación con excedentes\",\"VER\" )))))","v":"cantidad sin cumplimentar"},"cantidad sin cumplimentar","C10MS06",1,"unidad",0,{"$f":"+'Consulta situacion del botiquin'!O10","v":0},"",20,null,"ESPARADRAPO HIPOALERGÉNICO de  5 cm. x 10 m"]
[{"$f":"IF('lista botiquin C'!A28<>\"\",'lista botiquin C'!A28,\"\")","v":"GUANTES DESECHABLES DE VINILO del núm. 8-9"},{"$f":"IF('lista botiquin C'!B28<>\"\",'lista botiquin C'!B28,\"-\")","v":"-"},{"$f":"IF('lista botiquin C'!C28<>\"\",'lista botiquin C'!C28,\"-\")","v":"-"},{"$f":"+'lista botiquin C'!D28","v":4},{"$f":"+'lista botiquin C'!E28","v":"pares"},{"$f":"+'lista botiquin C'!F28","v":0},{"$f":"IF('lista botiquin C'!G28<>\"\",'lista botiquin C'!G28,\"\")","v":""},{"$f":"IF(+G22=\"\",Sit!$B$1,IF(TODAY()>=Ghost!G22,+Sit!$B$2,IF(TODAY()>=Ghost!G22-30,Sit!$B$3,Sit!$B$4)))","v":"sin fecha de caducidad"},4,"cantidad sin cumplimentar  --> sin fecha de caducidad",{"$f":"IF('lista botiquin C'!F28=\"\",\"cantidad sin cumplimentar\",\n\nIF(I22=0,\"cantidad exigida\",\n\nIF(I22=1,\"falta1ud\",\n\nIF(I22>1,\"faltanuds\",\n\nIF(I22<0,\"dotación con excedentes\",\"VER\" )))))","v":"cantidad sin cumplimentar"},"cantidad sin cumplimentar","C10MS07",4,"pares",0,{"$f":"+'Consulta situacion del botiquin'!O11","v":0},"",21,null,"GUANTES DESECHABLES DE VINILO del núm. 8-9"]
[{"$f":"IF('lista botiquin C'!A29<>\"\",'lista botiquin C'!A29,\"\")","v":"APÓSITOS AUTOADHESIVOS ESTÉRILES de 8 cm. x 10 cm. Caja con 5 unidades"},{"$f":"IF('lista botiquin C'!B29<>\"\",'lista botiquin C'!B29,\"-\")","v":"-"},{"$f":"IF('lista botiquin C'!C29<>\"\",'lista botiquin C'!C29,\"-\")","v":"-"},{"$f":"+'lista botiquin C'!D29","v":1},{"$f":"+'lista botiquin C'!E29","v":"caja"},{"$f":"+'lista botiquin C'!F29","v":0},{"$f":"IF('lista botiquin C'!G29<>\"\",'lista botiquin C'!G29,\"\")","v":""},{"$f":"IF(+G23=\"\",Sit!$B$1,IF(TODAY()>=Ghost!G23,+Sit!$B$2,IF(TODAY()>=Ghost!G23-30,Sit!$B$3,Sit!$B$4)))","v":"sin fecha de caducidad"},1,"cantidad sin cumplimentar  --> sin fecha de caducidad",{"$f":"IF('lista botiquin C'!F29=\"\",\"cantidad sin cumplimentar\",\n\nIF(I23=0,\"cantidad exigida\",\n\nIF(I23=1,\"falta1ud\",\n\nIF(I23>1,\"faltanuds\",\n\nIF(I23<0,\"dotación con excedentes\",\"VER\" )))))","v":"cantidad sin cumplimentar"},"cantidad sin cumplimentar","C10MS08",1,"caja",0,{"$f":"+'Consulta situacion del botiquin'!O12","v":0},"",22,null,"APÓSITOS AUTOADHESIVOS ESTÉRILES de 8 cm. x 10 cm.","Caja con 5 unidades"]
[{"$f":"IF('lista botiquin C'!A30<>\"\",'lista botiquin C'!A30,\"\")","v":"APÓSITOS ADHESIVOS PLÁSTICOS. Rollo de 6 cm. x 1 m."},{"$f":"IF('lista botiquin C'!B30<>\"\",'lista botiquin C'!B30,\"-\")","v":"-"},{"$f":"IF('lista botiquin C'!C30<>\"\",'lista botiquin C'!C30,\"-\")","v":"-"},{"$f":"+'lista botiquin C'!D30","v":1},{"$f":"+'lista botiquin C'!E30","v":"unidad"},{"$f":"+'lista botiquin C'!F30","v":0},{"$f":"IF('lista botiquin C'!G30<>\"\",'lista botiquin C'!G30,\"\")","v":""},{"$f":"IF(+G24=\"\",Sit!$B$1,IF(TODAY()>=Ghost!G24,+Sit!$B$2,IF(TODAY()>=Ghost!G24-30,Sit!$B$3,Sit!$B$4)))","v":"sin fecha de caducidad"},1,"cantidad sin cumplimentar  --> sin fecha de caducidad",{"$f":"IF('lista botiquin C'!F30=\"\",\"cantidad sin cumplimentar\",\n\nIF(I24=0,\"cantidad exigida\",\n\nIF(I24=1,\"falta1ud\",\n\nIF(I24>1,\"faltanuds\",\n\nIF(I24<0,\"dotación con excedentes\",\"VER\" )))))","v":"cantidad sin cumplimentar"},"cantidad sin cumplimentar","C10MS09",1,"unidad",0,{"$f":"+'Consulta situacion del botiquin'!O13","v":0},"",23,null,"APÓSITOS ADHESIVOS PLÁSTICOS. Rollo de 6 cm. x 1 m"]
[{"$f":"IF('lista botiquin C'!A31<>\"\",'lista botiquin C'!A31,\"\")","v":"SUTURAS ADHESIVAS. Paquete de 6 mm x 102 mm."},{"$f":"IF('lista botiquin C'!B31<>\"\",'lista botiquin C'!B31,\"-\")","v":"-"},{"$f":"IF('lista botiquin C'!C31<>\"\",'lista botiquin C'!C31,\"-\")","v":"-"},{"$f":"+'lista botiquin C'!D31","v":1},{"$f":"+'lista botiquin C'!E31","v":"paquete"},{"$f":"+'lista botiquin C'!F31","v":0},{"$f":"IF('lista botiquin C'!G31<>\"\",'lista botiquin C'!G31,\"\")","v":""},{"$f":"IF(+G25=\"\",Sit!$B$1,IF(TODAY()>=Ghost!G25,+Sit!$B$2,IF(TODAY()>=Ghost!G25-30,Sit!$B$3,Sit!$B$4)))","v":"sin fecha de caducidad"},1,"cantidad sin cumplimentar  --> sin fecha de caducidad",{"$f":"IF('lista botiquin C'!F31=\"\",\"cantidad sin cumplimentar\",\n\nIF(I25=0,\"cantidad exigida\",\n\nIF(I25=1,\"falta1ud\",\n\nIF(I25>1,\"faltanuds\",\n\nIF(I25<0,\"dotación con excedentes\",\"VER\" )))))","v":"cantidad sin cumplimentar"},"cantidad sin cumplimentar","C10MS10",1,"paquete",0,{"$f":"+'Consulta situacion del botiquin'!O14","v":0},"",24,null,"SUTURAS ADHESIVAS. Paquete de 6 mm x 102 mm."]
[{"$f":"IF('lista botiquin C'!A32<>\"\",'lista botiquin C'!A32,\"\")","v":"GASAS GRASAS de 7 cm. x 9 cm. Caja con 20 sobres"},{"$f":"IF('lista botiquin C'!B32<>\"\",'lista botiquin C'!B32,\"-\")","v":"-"},{"$f":"IF('lista botiquin C'!C32<>\"\",'lista botiquin C'!C32,\"-\")","v":"-"},{"$f":"+'lista botiquin C'!D32","v":1},{"$f":"+'lista botiquin C'!E32","v":"caja"},{"$f":"+'lista botiquin C'!F32","v":0},{"$f":"IF('lista botiquin C'!G32<>\"\",'lista botiquin C'!G32,\"\")","v":""},{"$f":"IF(+G26=\"\",Sit!$B$1,IF(TODAY()>=Ghost!G26,+Sit!$B$2,IF(TODAY()>=Ghost!G26-30,Sit!$B$3,Sit!$B$4)))","v":"sin fecha de caducidad"},1,"cantidad sin cumplimentar  --> sin fecha de caducidad",{"$f":"IF('lista botiquin C'!F32=\"\",\"cantidad sin cumplimentar\",\n\nIF(I26=0,\"cantidad exigida\",\n\nIF(I26=1,\"falta1ud\",\n\nIF(I26>1,\"faltanuds\",\n\nIF(I26<0,\"dotación con excedentes\",\"VER\" )))))","v":"cantidad sin cumplimentar"},"cantidad sin cumplimentar","C10MS11",1,"caja",0,{"$f":"+'Consulta situacion del botiquin'!O15","v":0},"",25,null,"GASAS GRASAS de 7 cm. x 9 cm. Caja con 20 sobres"]
[{"$f":"IF('lista botiquin C'!A33<>\"\",'lista botiquin C'!A33,\"\")","v":"TIJERA RECTA AGUDA "},{"$f":"IF('lista botiquin C'!B33<>\"\",'lista botiquin C'!B33,\"-\")","v":"-"},{"$f":"IF('lista botiquin C'!C33<>\"\",'lista botiquin C'!C33,\"-\")","v":"-"},{"$f":"+'lista botiquin C'!D33","v":1},{"$f":"+'lista botiquin C'!E33","v":"unidad"},{"$f":"+'lista botiquin C'!F33","v":0},{"$f":"IF('lista botiquin C'!G33<>\"\",'lista botiquin C'!G33,\"\")","v":""},{"$f":"IF(+G27=\"\",Sit!$B$1,IF(TODAY()>=Ghost!G27,+Sit!$B$2,IF(TODAY()>=Ghost!G27-30,Sit!$B$3,Sit!$B$4)))","v":"sin fecha de caducidad"},1,"cantidad sin cumplimentar  --> sin fecha de caducidad",{"$f":"IF('lista botiquin C'!F33=\"\",\"cantidad sin cumplimentar\",\n\nIF(I27=0,\"cantidad exigida\",\n\nIF(I27=1,\"falta1ud\",\n\nIF(I27>1,\"faltanuds\",\n\nIF(I27<0,\"dotación con excedentes\",\"VER\" )))))","v":"cantidad sin cumplimentar"},"cantidad sin cumplimentar","C10MS12",1,"unidad",0,{"$f":"+'Consulta situacion del botiquin'!O16","v":0},"",26,null,"TIJERA RECTA AGUDA "]
[{"$f":"IF('lista botiquin C'!A34<>\"\",'lista botiquin C'!A34,\"\")","v":"PINZAS DE DISECCIÓN RECTAS SIN DIENTES "},{"$f":"IF('lista botiquin C'!B34<>\"\",'lista botiquin C'!B34,\"-\")","v":"-"},{"$f":"IF('lista botiquin C'!C34<>\"\",'lista botiquin C'!C34,\"-\")","v":"-"},{"$f":"+'lista botiquin C'!D34","v":1},{"$f":"+'lista botiquin C'!E34","v":"unidad"},{"$f":"+'lista botiquin C'!F34","v":0},{"$f":"IF('lista botiquin C'!G34<>\"\",'lista botiquin C'!G34,\"\")","v":""},{"$f":"IF(+G28=\"\",Sit!$B$1,IF(TODAY()>=Ghost!G28,+Sit!$B$2,IF(TODAY()>=Ghost!G28-30,Sit!$B$3,Sit!$B$4)))","v":"sin fecha de caducidad"},1,"cantidad sin cumplimentar  --> sin fecha de caducidad",{"$f":"IF('lista botiquin C'!F34=\"\",\"cantidad sin cumplimentar\",\n\nIF(I28=0,\"cantidad exigida\",\n\nIF(I28=1,\"falta1ud\",\n\nIF(I28>1,\"faltanuds\",\n\nIF(I28<0,\"dotación con excedentes\",\"VER\" )))))","v":"cantidad sin cumplimentar"},"cantidad sin cumplimentar","C10MS13",1,"unidad",0,{"$f":"+'Consulta situacion del botiquin'!O17","v":0},"",27,null,"PINZAS DE DISECCIÓN RECTAS SIN DIENTES "]
[{"$f":"IF('lista botiquin C'!A35<>\"\",'lista botiquin C'!A35,\"\")","v":"GUÍA SANITARIA A BORDO"},{"$f":"IF('lista botiquin C'!B35<>\"\",'lista botiquin C'!B35,\"-\")","v":"-"},{"$f":"IF('lista botiquin C'!C35<>\"\",'lista botiquin C'!C35,\"-\")","v":"-"},{"$f":"+'lista botiquin C'!D35","v":1},{"$f":"+'lista botiquin C'!E35","v":"ejemplar"},{"$f":"+'lista botiquin C'!F35","v":0},{"$f":"IF('lista botiquin C'!G35<>\"\",'lista botiquin C'!G35,\"\")","v":""},{"$f":"IF(+G29=\"\",Sit!$B$1,IF(TODAY()>=Ghost!G29,+Sit!$B$2,IF(TODAY()>=Ghost!G29-30,Sit!$B$3,Sit!$B$4)))","v":"sin fecha de caducidad"},1,"cantidad sin cumplimentar  --> sin fecha de caducidad",{"$f":"IF('lista botiquin C'!F35=\"\",\"cantidad sin cumplimentar\",\n\nIF(I29=0,\"cantidad exigida\",\n\nIF(I29=1,\"falta1ud\",\n\nIF(I29>1,\"faltanuds\",\n\nIF(I29<0,\"dotación con excedentes\",\"VER\" )))))","v":"cantidad sin cumplimentar"},"cantidad sin cumplimentar","C10MS14",1,"ejemplar",0,{"$f":"+'Consulta situacion del botiquin'!O18","v":0},"",28,null,"GUÍA SANITARIA A BORDO"]
[{"$f":"IF('lista botiquin C'!A36<>\"\",'lista botiquin C'!A36,\"\")","v":"FÉRULAS DE ALUMINIO MALEABLE PARA DEDOS 2 cm. x 50 cm."},{"$f":"IF('lista botiquin C'!B36<>\"\",'lista botiquin C'!B36,\"-\")","v":"-"},{"$f":"IF('lista botiquin C'!C36<>\"\",'lista botiquin C'!C36,\"-\")","v":"-"},{"$f":"+'lista botiquin C'!D36","v":1},{"$f":"+'lista botiquin C'!E36","v":"tira"},{"$f":"+'lista botiquin C'!F36","v":0},{"$f":"IF('lista botiquin C'!G36<>\"\",'lista botiquin C'!G36,\"\")","v":""},{"$f":"IF(+G30=\"\",Sit!$B$1,IF(TODAY()>=Ghost!G30,+Sit!$B$2,IF(TODAY()>=Ghost!G30-30,Sit!$B$3,Sit!$B$4)))","v":"sin fecha de caducidad"},1,"cantidad sin cumplimentar  --> sin fecha de caducidad",{"$f":"IF('lista botiquin C'!F36=\"\",\"cantidad sin cumplimentar\",\n\nIF(I30=0,\"cantidad exigida\",\n\nIF(I30=1,\"falta1ud\",\n\nIF(I30>1,\"faltanuds\",\n\nIF(I30<0,\"dotación con excedentes\",\"VER\" )))))","v":"cantidad sin cumplimentar"},"cantidad sin cumplimentar","C10MS15",1,"tira",0,{"$f":"+'Consulta situacion del botiquin'!O19","v":0},"",29,null,"FÉRULAS DE ALUMINIO MALEABLE PARA DEDOS 2 cm. x 50 cm."]
[{"$f":"IF('lista botiquin C'!A37<>\"\",'lista botiquin C'!A37,\"\")","v":"CABESTRILLO o VENDA TRIANGULAR "},{"$f":"IF('lista botiquin C'!B37<>\"\",'lista botiquin C'!B37,\"-\")","v":"-"},{"$f":"IF('lista botiquin C'!C37<>\"\",'lista botiquin C'!C37,\"-\")","v":"-"},{"$f":"+'lista botiquin C'!D37","v":1},{"$f":"+'lista botiquin C'!E37","v":"unidad"},{"$f":"+'lista botiquin C'!F37","v":0},{"$f":"IF('lista botiquin C'!G37<>\"\",'lista botiquin C'!G37,\"\")","v":""},{"$f":"IF(+G31=\"\",Sit!$B$1,IF(TODAY()>=Ghost!G31,+Sit!$B$2,IF(TODAY()>=Ghost!G31-30,Sit!$B$3,Sit!$B$4)))","v":"sin fecha de caducidad"},1,"cantidad sin cumplimentar  --> sin fecha de caducidad",{"$f":"IF('lista botiquin C'!F37=\"\",\"cantidad sin cumplimentar\",\n\nIF(I31=0,\"cantidad exigida\",\n\nIF(I31=1,\"falta1ud\",\n\nIF(I31>1,\"faltanuds\",\n\nIF(I31<0,\"dotación con excedentes\",\"VER\" )))))","v":"cantidad sin cumplimentar"},"cantidad sin cumplimentar","C10MS16",1,"unidad",0,{"$f":"+'Consulta situacion del botiquin'!O20","v":0},"",30,null,"CABESTRILLO o VENDA TRIANGULAR "]

{"sheet":"Consulta situacion del botiquin","index":5,"n_rows":25,"n_cols":17,"rows_kept":25,"cut":false,"hidden":false,"merged":[[21,0,21,6],[18,0,18,6],[3,2,3,4],[0,4,0,6],[3,10,3,12],[0,12,0,14],[0,0,0,1],[1,0,1,1],[1,4,1,5],[1,12,1,13]]}
[{"$f":"IF(+identificacion!$D$3<>\"\",+identificacion!$D$3,\"\")","v":""},null,null,null,{"$f":"IF(+identificacion!$F$5<>\"\",+identificacion!$F$5,\"\")","v":""},null,null,null,null,{"$f":"IF(+identificacion!$D$3<>\"\",+identificacion!$D$3,\"\")","v":""},null,null,{"$f":"IF(+identificacion!$F$5<>\"\",+identificacion!$F$5,\"\")","v":""}]
[{"$f":"CONCATENATE(\"Matrícula: \",+identificacion!$D$4,\"  -     N.I.B.: \",+identificacion!$H$4)","v":"Matrícula:   -     N.I.B.: "},null,null,null,"Fecha del Control:",null,{"$f":"IF(+identificacion!$F$10<>\"\",+identificacion!$F$10,\"\")","v":""},null,null,{"$f":"CONCATENATE(\"Matrícula: \",+identificacion!$D$4,\"  -     N.I.B.: \",+identificacion!$H$4)","v":"Matrícula:   -     N.I.B.: "},null,null,"Fecha del Control:",null,{"$f":"IF(+identificacion!$F$10<>\"\",+identificacion!$F$10,\"\")","v":""}]
[]
["PRINCIPIO ACTIVO","PRESENTACIÓN","SITUACIÓN",null,null,"CADUCIDAD","Nº Uds. a REPONER",null,null,"MATERIAL SANITARIO","SITUACIÓN",null,null,"CADUCIDAD","Nº Uds. a REPONER"]
[{"$f":"+Ghost!B2","v":"EPINEFRINA"},{"$f":"+Ghost!C2","v":"1 mg. jeringa precargada 1 ml."},{"$f":"Ghost!L2","v":"cantidad sin cumplimentar"},"->",{"$f":"+Ghost!H2","v":"sin fecha de caducidad"},{"$f":"+Ghost!G2","v":""},null,null,{"$f":"+Ghost!D2","v":1},{"$f":"+Ghost!A16","v":"GELATINA HEMOSTÁTICA esponja 200 x 70 x 0,5 mm."},{"$f":"+Ghost!L16","v":"cantidad sin cumplimentar"},"->",{"$f":"+Ghost!H16","v":"sin fecha de caducidad"},{"$f":"+Ghost!G16","v":""},null,null,{"$f":"+Ghost!D16","v":1}]
[{"$f":"+Ghost!B3","v":"NITROGLICERINA"},{"$f":"+Ghost!C3","v":"0,8 mg. 30 comp."},{"$f":"Ghost!L3","v":"cantidad sin cumplimentar"},"->",{"$f":"+Ghost!H3","v":"sin fecha de caducidad"},{"$f":"+Ghost!G3","v":""},null,null,{"$f":"+Ghost!D3","v":1},{"$f":"+Ghost!A17","v":"CÁNULA PARA REANIMACIÓN BOCA A BOCA. TUBO DE GUEDEL núm. 3"},{"$f":"+Ghost!L17","v":"cantidad sin cumplimentar"},"->",{"$f":"+Ghost!H17","v":"sin fecha de caducidad"},{"$f":"+Ghost!G17","v":""},null,null,{"$f":"+Ghost!D17","v":1}]
[{"$f":"+Ghost!B4","v":"ALGELDRATO+HIDRÓXIDO DE MAGNESIO"},{"$f":"+Ghost!C4","v":" 600/300 mg. por comp. - 40 comp."},{"$f":"Ghost!L4","v":"cantidad sin cumplimentar"},"->",{"$f":"+Ghost!H4","v":"sin fecha de caducidad"},{"$f":"+Ghost!G4","v":""},null,null,{"$f":"+Ghost!D4","v":1},{"$f":"+Ghost!A18","v":"CÁNULA PARA REANIMACIÓN BOCA A BOCA. TUBO DE GUEDEL núm. 4"},{"$f":"+Ghost!L18","v":"cantidad sin cumplimentar"},"->",{"$f":"+Ghost!H18","v":"sin fecha de caducidad"},{"$f":"+Ghost!G18","v":""},null,null,{"$f":"+Ghost!D18","v":1}]
[{"$f":"+Ghost!B5","v":"METOCLOPRAMIDA"},{"$f":"+Ghost!C5","v":"10 mg. 30 comp."},{"$f":"Ghost!L5","v":"cantidad sin cumplimentar"},"->",{"$f":"+Ghost!H5","v":"sin fecha de caducidad"},{"$f":"+Ghost!G5","v":""},null,null,{"$f":"+Ghost!D5","v":1},{"$f":"+Ghost!A19","v":"VENDAS ELÁSTICAS 7 cm. x 4 m."},{"$f":"+Ghost!L19","v":"cantidad sin cumplimentar"},"->",{"$f":"+Ghost!H19","v":"sin fecha de caducidad"},{"$f":"+Ghost!G19","v":""},null,null,{"$f":"+Ghost!D19","v":2}]
[{"$f":"+Ghost!B6","v":"LOPERAMIDA"},{"$f":"+Ghost!C6","v":" 2 mg. 20 cápsulas"},{"$f":"Ghost!L6","v":"cantidad sin cumplimentar"},"->",{"$f":"+Ghost!H6","v":"sin fecha de caducidad"},{"$f":"+Ghost!G6","v":""},null,null,{"$f":"+Ghost!D6","v":1},{"$f":"+Ghost!A20","v":"COMPRESAS DE GASA ESTÉRILES de 20 cm. x 20 cm. Caja con 25 unidades"},{"$f":"+Ghost!L20","v":"cantidad sin cumplimentar"},"->",{"$f":"+Ghost!H20","v":"sin fecha de caducidad"},{"$f":"+Ghost!G20","v":""},null,null,{"$f":"+Ghost!D20","v":1}]
[{"$f":"+Ghost!B7","v":"PARACETAMOL"},{"$f":"+Ghost!C7","v":"1 g. 30 comp."},{"$f":"Ghost!L7","v":"cantidad sin cumplimentar"},"->",{"$f":"+Ghost!H7","v":"sin fecha de caducidad"},{"$f":"+Ghost!G7","v":""},null,null,{"$f":"+Ghost!D7","v":1},{"$f":"+Ghost!A21","v":"ESPARADRAPO HIPOALERGÉNICO de  5 cm. x 10 m."},{"$f":"+Ghost!L21","v":"cantidad sin cumplimentar"},"->",{"$f":"+Ghost!H21","v":"sin fecha de caducidad"},{"$f":"+Ghost!G21","v":""},null,null,{"$f":"+Ghost!D21","v":1}]
[{"$f":"+Ghost!B8","v":"DICLOFENACO SODICO"},{"$f":"+Ghost!C8","v":"1% gel tópico  60 g."},{"$f":"Ghost!L8","v":"cantidad sin cumplimentar"},"->",{"$f":"+Ghost!H8","v":"sin fecha de caducidad"},{"$f":"+Ghost!G8","v":""},null,null,{"$f":"+Ghost!D8","v":1},{"$f":"+Ghost!A22","v":"GUANTES DESECHABLES DE VINILO del núm. 8-9"},{"$f":"+Ghost!L22","v":"cantidad sin cumplimentar"},"->",{"$f":"+Ghost!H22","v":"sin fecha de caducidad"},{"$f":"+Ghost!G22","v":""},null,null,{"$f":"+Ghost!D22","v":4}]
[{"$f":"+Ghost!B9","v":"METAMIZOL"},{"$f":"+Ghost!C9","v":"575 mg. 10 cápsulas"},{"$f":"Ghost!L9","v":"cantidad sin cumplimentar"},"->",{"$f":"+Ghost!H9","v":"sin fecha de caducidad"},{"$f":"+Ghost!G9","v":""},null,null,{"$f":"+Ghost!D9","v":1},{"$f":"+Ghost!A23","v":"APÓSITOS AUTOADHESIVOS ESTÉRILES de 8 cm. x 10 cm. Caja con 5 unidades"},{"$f":"+Ghost!L23","v":"cantidad sin cumplimentar"},"->",{"$f":"+Ghost!H23","v":"sin fecha de caducidad"},{"$f":"+Ghost!G23","v":""},null,null,{"$f":"+Ghost!D23","v":1}]
[{"$f":"+Ghost!B10","v":"DIMENHIDRINATO"},{"$f":"+Ghost!C10","v":" 50 mg. 12 comp."},{"$f":"Ghost!L10","v":"cantidad sin cumplimentar"},"->",{"$f":"+Ghost!H10","v":"sin fecha de caducidad"},{"$f":"+Ghost!G10","v":""},null,null,{"$f":"+Ghost!D10","v":1},{"$f":"+Ghost!A24","v":"APÓSITOS ADHESIVOS PLÁSTICOS. Rollo de 6 cm. x 1 m."},{"$f":"+Ghost!L24","v":"cantidad sin cumplimentar"},"->",{"$f":"+Ghost!H24","v":"sin fecha de caducidad"},{"$f":"+Ghost!G24","v":""},null,null,{"$f":"+Ghost!D24","v":1}]
[{"$f":"+Ghost!B11","v":"POVIDONA"},{"$f":"+Ghost!C11","v":"10 unidosis 5 ml."},{"$f":"Ghost!L11","v":"cantidad sin cumplimentar"},"->",{"$f":"+Ghost!H11","v":"sin fecha de caducidad"},{"$f":"+Ghost!G11","v":""},null,null,{"$f":"+Ghost!D11","v":1},{"$f":"+Ghost!A25","v":"SUTURAS ADHESIVAS. Paquete de 6 mm x 102 mm."},{"$f":"+Ghost!L25","v":"cantidad sin cumplimentar"},"->",{"$f":"+Ghost!H25","v":"sin fecha de caducidad"},{"$f":"+Ghost!G25","v":""},null,null,{"$f":"+Ghost!D25","v":1}]
[{"$f":"+Ghost!B12","v":"ALCOHOL DE 70°"},{"$f":"+Ghost!C12","v":"Solución 50 ml."},{"$f":"Ghost!L12","v":"cantidad sin cumplimentar"},"->",{"$f":"+Ghost!H12","v":"sin fecha de caducidad"},{"$f":"+Ghost!G12","v":""},null,null,{"$f":"+Ghost!D12","v":1},{"$f":"+Ghost!A26","v":"GASAS GRASAS de 7 cm. x 9 cm. Caja con 20 sobres"},{"$f":"+Ghost!L26","v":"cantidad sin cumplimentar"},"->",{"$f":"+Ghost!H26","v":"sin fecha de caducidad"},{"$f":"+Ghost!G26","v":""},null,null,{"$f":"+Ghost!D26","v":1}]
[{"$f":"+Ghost!B13","v":"CLORHEXIDINA"},{"$f":"+Ghost!C13","v":"Solución tópica 1%. Frasco 25 ml."},{"$f":"Ghost!L13","v":"cantidad sin cumplimentar"},"->",{"$f":"+Ghost!H13","v":"sin fecha de caducidad"},{"$f":"+Ghost!G13","v":""},null,null,{"$f":"+Ghost!D13","v":1},{"$f":"+Ghost!A27","v":"TIJERA RECTA AGUDA "},{"$f":"+Ghost!L27","v":"cantidad sin cumplimentar"},"->",{"$f":"+Ghost!H27","v":"sin fecha de caducidad"},{"$f":"+Ghost!G27","v":""},null,null,{"$f":"+Ghost!D27","v":1}]
[{"$f":"+Ghost!B14","v":"SOLUCIÓN ANTISÉPTICA para higiene de manos."},{"$f":"+Ghost!C14","v":"Sobres o frasco 50 ml."},{"$f":"Ghost!L14","v":"cantidad sin cumplimentar"},"->",{"$f":"+Ghost!H14","v":"sin fecha de caducidad"},{"$f":"+Ghost!G14","v":""},null,null,{"$f":"+Ghost!D14","v":1},{"$f":"+Ghost!A28","v":"PINZAS DE DISECCIÓN RECTAS SIN DIENTES "},{"$f":"+Ghost!L28","v":"cantidad sin cumplimentar"},"->",{"$f":"+Ghost!H28","v":"sin fecha de caducidad"},{"$f":"+Ghost!G28","v":""},null,null,{"$f":"+Ghost!D28","v":1}]
[{"$f":"+Ghost!B15","v":"CORTICOIDE + OTROS"},{"$f":"+Ghost!C15","v":"Gel de 30 g."},{"$f":"Ghost!L15","v":"cantidad sin cumplimentar"},"->",{"$f":"+Ghost!H15","v":"sin fecha de caducidad"},{"$f":"+Ghost!G15","v":""},null,null,{"$f":"+Ghost!D15","v":1},{"$f":"+Ghost!A29","v":"GUÍA SANITARIA A BORDO"},{"$f":"+Ghost!L29","v":"cantidad sin cumplimentar"},"->",{"$f":"+Ghost!H29","v":"sin fecha de caducidad"},{"$f":"+Ghost!G29","v":""},null,null,{"$f":"+Ghost!D29","v":1}]
[null,null,null,null,null,null,null,null,null,{"$f":"+Ghost!A30","v":"FÉRULAS DE ALUMINIO MALEABLE PARA DEDOS 2 cm. x 50 cm."},{"$f":"+Ghost!L30","v":"cantidad sin cumplimentar"},"->",{"$f":"+Ghost!H30","v":"sin fecha de caducidad"},{"$f":"+Ghost!G30","v":""},null,null,{"$f":"+Ghost!D30","v":1}]
[null,null,null,null,null,null,null,null,null,{"$f":"+Ghost!A31","v":"CABESTRILLO o VENDA TRIANGULAR "},{"$f":"+Ghost!L31","v":"cantidad sin cumplimentar"},"->",{"$f":"+Ghost!H31","v":"sin fecha de caducidad"},{"$f":"+Ghost!G31","v":""},null,null,{"$f":"+Ghost!D31","v":1}]
[]
[]
[]
[]
["Observaciones:",{"$f":"CONCATENATE(\"Fecha de impresión: \",+DAY(TODAY()),\"/\",MONTH(TODAY()),\"/\",YEAR(TODAY()))","v":"Fecha de impresión: 30/4/2016"}]